bitfinex-derivatives/quotes_SOLF0:USTF0_20260315
["timestamp","ask_amount","ask_price","bid_price","bid_amount"]
[1773614487352,10.00162468,91.87,91.662,34.34]
[1773614487353,28.19048541,91.791,91.715,9.811]
[1773614488049,43.19210284,91.789,91.715,9.811]
[1773614488351,28.19048541,91.788,91.706,27.05206825]
[1773614488747,28.19048541,91.784,91.702,34.34]
[1773614489542,28.19048541,91.769,91.702,34.34]
[1773614489946,28.19048541,91.769,91.685,27.05206825]
[1773614490151,15.00161743,91.789,91.685,27.05206825]
[1773614490152,28.19048541,91.767,91.685,27.05206825]
[1773614490347,28.19048541,91.767,91.677,34.34]
[1773614490549,28.19048541,91.751,91.677,34.34]
[1773614491050,28.19048541,91.751,91.689,9.814]
[1773614491255,28.19048541,91.751,91.689,36.86606825]
[1773614491456,28.19048541,91.751,91.677,34.34]
[1773614491749,28.19048541,91.751,91.688,9.814]
[1773614492053,28.19048541,91.751,91.689,27.05206825]
[1773614492654,28.19048541,91.751,91.677,34.34]
[1773614493453,28.19048541,91.74,91.677,34.34]
[1773614495551,28.19048541,91.74,91.679,9.815]
[1773614495948,28.19048541,91.74,91.677,34.34]
[1773614496148,28.19048541,91.74,91.668,27.05206825]
[1773614496149,28.19048541,91.74,91.65,34.34]
[1773614496350,28.19048541,91.709,91.65,34.34]
[1773614496553,28.19048541,91.684,91.609,9.822]
[1773614496753,28.19048541,91.684,91.608,27.05206825]
[1773614497159,28.19048541,91.684,91.608,36.87406825]
[1773614497458,28.19048541,91.684,91.609,27.05206825]
[1773614498253,28.19048541,91.684,91.616,27.05206825]
[1773614498456,8.14896918,91.76,91.607,34.34]
[1773614498457,28.19048541,91.706,91.621,27.05206825]
[1773614498856,38.00248541,91.706,91.629,36.87206825]
[1773614499057,28.19048541,91.706,91.607,34.34]
[1773614499361,28.19048541,91.681,91.608,9.822]
[1773614499563,28.19048541,91.681,91.607,34.34]
[1773614500557,9.816,91.667,91.607,34.34]
[1773614500759,28.19048541,91.666,91.561,27.05206825]
[1773614500960,28.19048541,91.659,91.561,27.05206825]
[1773614501162,28.19048541,91.643,91.569,9.827]
[1773614501358,28.19048541,91.643,91.54,8.16508189]
[1773614501558,28.19048541,91.639,91.536,27.05206825]
[1773614501758,28.19048541,91.621,91.536,27.05206825]
[1773614502364,28.19048541,91.621,91.547,9.829]
[1773614502962,28.19048541,91.621,91.558,36.88006825]
[1773614503767,28.19048541,91.621,91.558,27.05206825]
[1773614505867,28.19048541,91.621,91.548,9.829]
[1773614506169,28.19048541,91.621,91.548,36.88106825]
[1773614506370,28.19048541,91.648,91.56,8.16508189]
[1773614506668,28.19048541,91.648,91.561,27.05206825]
[1773614506871,28.19048541,91.648,91.533,34.34]
[1773614506872,28.19048541,91.763,91.564,27.05206825]
[1773614507059,10.03990905,91.765,91.533,34.34]
[1773614507060,28.19048541,91.782,91.691,27.05206825]
[1773614507263,28.19048541,91.782,91.71,8.16508189]
[1773614507965,8.16508189,91.77,91.668,27.05206825]
[1773614508171,28.19048541,91.769,91.668,27.05206825]
[1773614509066,28.19048541,91.749,91.668,9.816]
[1773614509373,29.63290905,91.852,91.669,27.05206825]
[1773614509670,28.19048541,91.874,91.781,27.05206825]
[1773614509862,28.19048541,91.874,91.801,27.05206825]
[1773614510066,28.19048541,91.909,91.832,9.798]
[1773614510361,28.19048541,91.909,91.833,36.56135094]
[1773614510672,28.19048541,91.909,91.82,8.16508189]
[1773614510673,28.19048541,91.909,91.834,9.50928269]
[1773614510862,28.19048541,91.909,91.803,27.05206825]
[1773614511068,28.19048541,91.909,91.821,9.8]
[1773614511364,23.75048541,91.909,91.823,27.05206825]
[1773614511568,23.75048541,91.909,91.824,9.5123385]
[1773614511770,23.75048541,91.909,91.825,9.5123385]
[1773614511969,23.75048541,91.909,91.826,9.5123385]
[1773614512171,23.75048541,91.909,91.828,9.799]
[1773614512371,23.75048541,91.909,91.829,9.48566799]
[1773614512571,23.75048541,91.909,91.83,9.48566799]
[1773614512770,23.75048541,91.909,91.831,9.48566799]
[1773614512970,23.75048541,91.909,91.832,19.28366799]
[1773614513169,23.75048541,91.909,91.833,9.48566799]
[1773614513366,23.75048541,91.909,91.834,9.48566799]
[1773614513570,23.75048541,91.909,91.832,9.798]
[1773614513571,23.75048541,91.909,91.835,9.48566799]
[1773614513769,23.75048541,91.909,91.836,9.48566799]
[1773614514071,23.75048541,91.909,91.832,9.798]
[1773614514268,23.75048541,91.909,91.8,27.41245342]
[1773614514569,8.16508189,91.92,91.776,27.41245342]
[1773614514570,29.65396347,91.879,91.776,27.41245342]
[1773614514770,14.79512047,92.0,91.92,27.41245342]
[1773614514967,8.16508189,92.05,91.922,27.41245342]
[1773614515273,8.16508189,92.08,91.947,27.41245342]
[1773614515468,8.16508189,92.08,91.96,8.16508189]
[1773614515662,8.16508189,92.08,91.92,8.16508189]
[1773614515663,8.16508189,92.11,91.981,27.41245342]
[1773614515866,8.16508189,92.1,91.982,27.41245342]
[1773614516065,8.16508189,92.16,91.99,8.16508189]
[1773614516066,8.16508189,92.11,91.99,8.16508189]
[1773614516272,8.16508189,92.11,91.991,27.41245342]
[1773614516468,151.739,92.25,92.002,27.41245342]
[1773614516668,13.4278009,92.274,92.061,27.41245342]
[1773614516669,16.58499283,92.169,92.061,27.41245342]
[1773614517470,16.67437916,92.199,92.049,27.41245342]
[1773614517665,16.67437916,92.227,92.101,27.41245342]
[1773614517867,17.35158124,92.211,92.103,27.41245342]
[1773614518073,17.35158124,92.211,92.105,27.41245342]
[1773614518273,151.562,92.358,92.106,27.41245342]
[1773614518477,17.35158124,92.211,92.111,27.41245342]
[1773614518874,34.3,92.286,92.084,27.41245342]
[1773614518875,9.76,92.194,92.084,27.41245342]
[1773614519077,19.11288706,92.193,92.054,27.41245342]
[1773614519469,19.11288706,92.141,92.026,27.41245342]
[1773614519874,151.798,92.214,92.006,34.28]
[1773614519875,21.6591045,92.182,92.051,27.41245342]
[1773614520371,21.6591045,92.182,92.053,27.41245342]
[1773614520570,21.6591045,92.182,91.98,152.183]
[1773614520571,21.73377524,92.208,92.087,27.41245342]
[1773614520775,151.571,92.353,92.011,152.132]
[1773614520776,21.73298726,92.239,92.12,30.146438]
[1773614520976,21.73298726,92.239,92.125,27.41245342]
[1773614521171,21.73298726,92.239,92.127,27.41245342]
[1773614521373,21.73298726,92.239,92.126,34.28]
[1773614521374,10.98,92.375,92.164,27.41245342]
[1773614521574,29.65396347,92.429,92.126,34.28]
[1773614521575,29.65396347,92.429,92.306,9.748]
[1773614521874,151.255,92.545,92.187,151.841]
[1773614521875,30.146438,92.45,92.308,27.41245342]
[1773614522073,9.734,92.444,92.31,27.41245342]
[1773614522274,30.146438,92.42,92.261,27.41245342]
[1773614522469,30.146438,92.43,92.291,27.41245342]
[1773614522674,29.65396347,92.399,92.291,11.09845342]
[1773614523083,9.738,92.407,92.291,11.09845342]
[1773614523375,29.65396347,92.428,92.291,11.09845342]
[1773614523580,29.65396347,92.399,92.291,11.09845342]
[1773614523776,29.65396347,92.389,92.152,47.86]
[1773614523978,29.65396347,92.359,92.21,30.146438]
[1773614524278,29.65396347,92.359,92.139,151.921]
[1773614524279,29.65396347,92.359,92.207,34.24]
[1773614524575,29.65396347,92.359,92.114,151.962]
[1773614524576,29.65396347,92.329,92.204,27.41245342]
[1773614524874,29.65396347,92.329,92.205,27.41245342]
[1773614525276,34.24,92.366,92.205,27.41245342]
[1773614525277,30.146438,92.32,92.205,27.41245342]
[1773614525478,29.65396347,92.319,92.205,27.41245342]
[1773614525683,29.65396347,92.369,92.205,27.41245342]
[1773614525877,29.65396347,92.369,92.221,27.41245342]
[1773614526079,29.65396347,92.369,92.229,27.41245342]
[1773614526280,29.65396347,92.369,92.251,27.41245342]
[1773614526479,29.65396347,92.369,92.25,30.146438]
[1773614526480,29.65396347,92.369,92.252,27.41245342]
[1773614527180,29.65396347,92.367,92.252,27.41245342]
[1773614527484,29.65396347,92.399,92.252,27.41245342]
[1773614527781,29.65396347,92.389,92.256,27.41245342]
[1773614528278,29.65396347,92.386,92.256,27.41245342]
[1773614528679,9.741,92.375,92.256,27.41245342]
[1773614528983,29.65396347,92.386,92.258,27.41245342]
[1773614529180,29.65396347,92.386,92.259,27.41245342]
[1773614529373,29.65396347,92.384,92.259,27.41245342]
[1773614529976,9.74,92.381,92.259,27.41245342]
[1773614530179,29.65396347,92.38,92.259,27.41245342]
[1773614530886,29.65396347,92.376,92.259,27.41245342]
[1773614531085,29.65396347,92.369,92.251,34.18]
[1773614531285,29.65396347,92.369,92.252,27.41245342]
[1773614531986,29.65396347,92.369,92.254,27.41245342]
[1773614532378,29.65396347,92.369,92.256,27.41245342]
[1773614532580,29.65396347,92.365,92.256,27.41245342]
[1773614533185,30.146438,92.37,92.228,27.41245342]
[1773614533186,29.65396347,92.346,92.228,27.41245342]
[1773614533378,29.65396347,92.346,92.23,27.41245342]
[1773614533579,29.65396347,92.346,92.232,27.41245342]
[1773614533783,29.65396347,92.339,92.232,61.57245342]
[1773614534279,29.65396347,92.324,92.191,27.41245342]
[1773614534487,151.524,92.381,92.191,27.41245342]
[1773614534488,29.65396347,92.309,92.191,27.41245342]
[1773614534881,29.65396347,92.297,92.191,27.41245342]
[1773614535077,29.65396347,92.297,92.152,34.16]
[1773614535286,29.65396347,92.297,92.131,27.41245342]
[1773614535287,29.65396347,92.279,92.153,27.41245342]
[1773614535887,9.755,92.247,92.153,27.41245342]
[1773614536088,29.65396347,92.246,92.153,27.41245342]
[1773614536287,29.65396347,92.246,92.101,27.41245342]
[1773614536487,29.65396347,92.246,91.963,152.211]
[1773614536488,29.65396347,92.194,92.103,27.41245342]
[1773614537386,9.76,92.193,92.103,27.41245342]
[1773614537582,29.65396347,92.194,92.103,27.41245342]
[1773614539490,29.65396347,92.194,92.041,32.91]
[1773614539491,29.65396347,92.232,92.131,27.41245342]
[1773614540184,29.65396347,92.228,92.131,27.41245342]
[1773614540693,9.757,92.221,92.131,27.41245342]
[1773614540885,9.757,92.221,92.058,32.91]
[1773614540886,29.65396347,92.219,92.076,27.41245342]
[1773614541091,29.65396347,92.219,92.08,27.41245342]
[1773614542492,29.31593264,92.177,92.08,27.41245342]
[1773614542690,29.31593264,92.177,92.073,34.16]
[1773614542992,29.31593264,92.171,92.074,29.84857365]
[1773614543495,9.763,92.168,92.074,29.84857365]
[1773614543687,9.763,92.168,92.047,9.776]
[1773614543688,9.763,92.168,92.075,64.00857365]
[1773614543886,9.763,92.168,92.076,34.16]
[1773614544694,9.763,92.168,92.077,29.84857365]
[1773614545494,29.31593264,92.171,92.077,29.84857365]
[1773614546095,39.07493264,92.201,92.078,29.84857365]
[1773614546290,29.31593264,92.201,92.078,29.84857365]
[1773614546897,29.31593264,92.201,92.079,32.91]
[1773614547093,29.31593264,92.201,92.08,29.84857365]
[1773614547296,29.31593264,92.199,92.083,29.84857365]
[1773614547792,9.761,92.186,92.085,29.84857365]
[1773614548095,29.31593264,92.199,92.091,29.84857365]
[1773614548289,29.31593264,92.199,92.093,29.84857365]
[1773614548490,29.31593264,92.249,92.097,29.84857365]
[1773614548690,29.31593264,92.249,92.121,29.84857365]
[1773614548991,9.756,92.232,92.124,29.84857365]
[1773614549595,29.31593264,92.275,92.151,29.84857365]
[1773614549801,29.31593264,92.275,92.092,34.16]
[1773614549802,29.31593264,92.275,92.153,29.84857365]
[1773614549990,29.31593264,92.257,92.153,29.84857365]
[1773614550596,9.754,92.247,92.153,29.84857365]
[1773614551199,29.31593264,92.257,92.156,29.84857365]
[1773614552692,9.755,92.242,92.156,29.84857365]
[1773614552893,10.98,92.327,92.153,34.16]
[1773614552894,151.18,92.591,92.264,151.714]
[1773614553095,151.18,92.591,92.202,455.451]
[1773614553096,73.08926352,92.526,92.44,30.146438]
[1773614553400,73.08926352,92.526,92.347,151.578]
[1773614553401,73.08926352,92.52,92.423,34.16]
[1773614553599,73.08926352,92.579,92.425,32.91]
[1773614553799,73.08926352,92.579,92.451,32.91]
[1773614553998,73.08926352,92.579,92.48,30.146438]
[1773614554501,73.9106069,92.629,92.48,30.146438]
[1773614554699,73.86544185,92.609,92.481,34.16]
[1773614555001,73.86544185,92.579,92.448,34.16]
[1773614555196,73.86544185,92.553,92.43,30.146438]
[1773614555895,83.58744185,92.553,92.431,34.14]
[1773614556100,75.8391536,92.549,92.4,30.146438]
[1773614556297,75.8391536,92.532,92.4,30.146438]
[1773614556503,75.8391536,92.532,92.401,34.14]
[1773614557402,75.8391536,92.532,92.34,190.7]
[1773614557403,75.8382307,92.519,92.36,30.146438]
[1773614557602,75.8382307,92.51,92.362,9.742]
[1773614558100,75.68151469,92.507,92.362,9.742]
[1773614558294,75.68151469,92.507,92.363,34.12]
[1773614558799,75.68151469,92.507,92.241,151.752]
[1773614558800,75.68024929,92.489,92.31,30.146438]
[1773614559100,75.68024929,92.459,92.311,34.12]
[1773614559304,75.68024929,92.423,92.311,34.12]
[1773614559898,75.0489588,92.486,92.34,30.146438]
[1773614560301,75.0489588,92.486,92.312,32.91]
[1773614560302,75.0489588,92.486,92.397,9.739]
[1773614560494,73.25149842,92.486,92.398,34.12]
[1773614560699,73.25149842,92.486,92.397,34.12]
[1773614561300,73.25149842,92.486,92.398,34.1]
[1773614561903,34.12,92.535,92.34,19.94919123]
[1773614561904,19.94919123,92.51,92.34,19.94919123]
[1773614562200,19.94919123,92.51,92.225,151.779]
[1773614562201,151.289,92.524,92.28,19.94919123]
[1773614562202,32.91,92.449,92.28,19.94919123]
[1773614562506,73.55286688,92.419,92.281,34.1]
[1773614562702,73.55286688,92.408,92.26,19.94919123]
[1773614562908,73.55286688,92.408,92.261,34.1]
[1773614563204,73.17558515,92.406,92.261,34.1]
[1773614563402,73.17558515,92.394,92.263,9.753]
[1773614563905,73.17558515,92.394,92.262,34.1]
[1773614564101,73.17558515,92.394,92.26,19.94919123]
[1773614564301,73.46038463,92.385,92.261,34.1]
[1773614564602,73.46038463,92.385,92.23,19.94919123]
[1773614564906,73.13184381,92.352,92.231,34.1]
[1773614565898,73.13184381,92.352,92.248,9.754]
[1773614567307,72.94376829,92.35,92.232,32.91]
[1773614567697,34.1,92.371,92.23,19.94919123]
[1773614567698,72.86793223,92.348,92.233,9.756]
[1773614567903,72.86793223,92.348,92.172,190.5]
[1773614567904,72.86793223,92.348,92.234,34.1]
[1773614568199,72.86793223,92.348,92.235,34.1]
[1773614568398,72.86793223,92.341,92.21,19.94919123]
[1773614568704,72.86793223,92.341,92.211,34.1]
[1773614568905,72.86793223,92.341,92.212,67.01]
[1773614569804,19.94919123,92.36,92.21,19.94919123]
[1773614569805,72.83589088,92.333,92.213,34.1]
[1773614570206,72.83589088,92.333,92.21,19.94919123]
[1773614570609,72.83589088,92.333,92.211,34.1]
[1773614570810,72.83589088,92.333,92.21,19.94919123]
[1773614571007,72.81926441,92.325,92.214,9.758]
[1773614571304,72.81926441,92.325,92.215,34.1]
[1773614571502,72.81926441,92.322,92.215,34.1]
[1773614572110,72.80531512,92.31,92.215,34.1]
[1773614572411,72.80531512,92.31,92.215,43.858]
[1773614572712,72.76209244,92.359,92.24,19.94919123]
[1773614573613,72.76209244,92.357,92.251,9.754]
[1773614574611,72.67221604,92.353,92.241,32.91]
[1773614574816,72.67221604,92.353,92.242,34.1]
[1773614575515,72.67221604,92.353,92.261,9.753]
[1773614576221,72.67221604,92.353,92.264,9.753]
[1773614577217,34.1,92.393,92.213,32.91]
[1773614577218,72.70300197,92.351,92.213,32.91]
[1773614577413,72.70300197,92.349,92.215,32.91]
[1773614577817,72.70300197,92.349,92.214,34.1]
[1773614577818,72.70300197,92.349,92.228,32.91]
[1773614578121,72.70300197,92.349,92.24,19.94919123]
[1773614578321,72.70324371,92.338,92.24,19.94919123]
[1773614579211,9.747,92.32,92.24,19.94919123]
[1773614579413,9.747,92.32,92.16,32.91]
[1773614579414,72.55697892,92.319,92.225,34.1]
[1773614580126,9.748,92.312,92.227,9.757]
[1773614580327,19.94919123,92.36,92.215,34.12]
[1773614580328,72.35125047,92.311,92.215,34.12]
[1773614580523,72.35125047,92.311,92.21,19.94919123]
[1773614580725,72.35125047,92.308,92.211,34.12]
[1773614581624,72.22910019,92.34,92.243,9.755]
[1773614581823,72.22910019,92.34,92.24,19.94919123]
[1773614583223,72.22910019,92.34,92.256,9.753]
[1773614583425,72.22910019,92.34,92.24,19.94919123]
[1773614583426,72.22910019,92.34,92.245,34.12]
[1773614583919,72.19935188,92.338,92.243,34.12]
[1773614584122,72.19935188,92.338,92.178,32.91]
[1773614584319,72.19935188,92.327,92.233,9.756]
[1773614585630,9.748,92.313,92.233,9.756]
[1773614586527,72.2182466,92.309,92.222,34.12]
[1773614587330,72.27210606,92.336,92.222,34.12]
[1773614587630,82.01910606,92.319,92.238,9.755]
[1773614587830,82.01910606,92.319,92.239,34.12]
[1773614588232,9.748,92.307,92.239,34.12]
[1773614588427,72.29073756,92.306,92.225,9.757]
[1773614588634,72.29073756,92.306,92.191,34.12]
[1773614588825,9.75,92.287,92.214,9.758]
[1773614589629,72.58837388,92.287,92.214,9.758]
[1773614590528,72.58837388,92.287,92.225,9.757]
[1773614590727,72.58837388,92.287,92.192,34.12]
[1773614590929,82.33837388,92.287,92.192,34.12]
[1773614591133,72.58837388,92.287,92.223,9.757]
[1773614591527,72.58837388,92.287,92.192,34.12]
[1773614592227,72.58837388,92.287,92.212,9.758]
[1773614592530,72.58837388,92.287,92.213,34.12]
[1773614592736,72.36115405,92.285,92.212,9.758]
[1773614593327,72.36115405,92.272,92.15,19.94919123]
[1773614593525,72.36115405,92.27,92.151,34.12]
[1773614593730,72.36115405,92.268,92.151,34.12]
[1773614594331,72.57134,92.263,92.186,9.761]
[1773614594531,72.57134,92.263,92.152,34.12]
[1773614594732,72.57134,92.263,92.15,19.94919123]
[1773614594933,72.57134,92.263,92.151,34.12]
[1773614595134,34.12,92.291,92.183,9.761]
[1773614595135,72.5765924,92.26,92.183,9.761]
[1773614595634,72.5765924,92.26,92.179,34.12]
[1773614595830,72.5765924,92.26,92.195,9.76]
[1773614596031,34.12,92.291,92.195,9.76]
[1773614596337,110.3542746,92.726,92.179,34.12]
[1773614596338,72.61820243,92.368,92.305,9.748]
[1773614596631,72.61820243,92.368,92.201,19.519]
[1773614596632,72.59379164,92.44,92.293,34.12]
[1773614596941,72.59379164,92.428,92.294,34.12]
[1773614597431,72.59379164,92.406,92.315,9.747]
[1773614597641,72.59379164,92.406,92.294,34.12]
[1773614598040,72.72145886,92.389,92.296,9.749]
[1773614598430,72.72145886,92.389,92.294,34.12]
[1773614598629,72.72145886,92.387,92.294,34.12]
[1773614598939,34.12,92.416,92.294,34.12]
[1773614598940,73.0431173,92.385,92.298,9.749]
[1773614599136,73.0431173,92.385,92.219,32.91]
[1773614599137,73.0431173,92.385,92.236,9.34316623]
[1773614599338,73.0431173,92.385,92.237,34.12]
[1773614599543,73.0431173,92.346,92.206,34.12]
[1773614599744,73.0431173,92.344,92.207,34.12]
[1773614599938,73.25636762,92.336,92.227,9.757]
[1773614600143,73.25636762,92.327,92.22,34.12]
[1773614600344,73.25636762,92.327,92.221,34.12]
[1773614600543,73.25636762,92.321,92.222,34.12]
[1773614600744,73.25636762,92.317,92.211,9.758]
[1773614601041,73.43956776,92.316,92.211,9.758]
[1773614601243,73.43956776,92.314,92.211,9.758]
[1773614601635,73.43956776,92.307,92.195,9.76]
[1773614601841,34.12,92.317,92.195,9.76]
[1773614601842,73.12947971,92.303,92.195,9.76]
[1773614602036,73.12947971,92.289,92.195,9.76]
[1773614602435,73.12947971,92.289,92.163,9.763]
[1773614602741,73.12947971,92.262,92.13,9.34316623]
[1773614602935,73.01773543,92.24,92.146,9.765]
[1773614603136,73.01773543,92.24,92.131,34.12]
[1773614603342,6.88674151,92.261,92.166,9.34316623]
[1773614603540,78.46586467,92.402,92.131,34.12]
[1773614603541,78.46586467,92.348,92.25,19.94919123]
[1773614603740,78.46586467,92.348,92.251,34.12]
[1773614604138,78.16646948,92.342,92.247,34.12]
[1773614604743,78.16646948,92.342,92.251,9.754]
[1773614605146,77.68815936,92.325,92.251,9.754]
[1773614605742,77.68815936,92.325,92.236,9.756]
[1773614605943,77.68815936,92.325,92.237,34.12]
[1773614606243,77.68815936,92.325,92.238,43.875]
[1773614606444,77.68815936,92.325,92.234,9.34316623]
[1773614606644,77.64904781,92.317,92.209,9.34316623]
[1773614606843,77.64904781,92.317,92.216,9.34316623]
[1773614607139,77.64904781,92.317,92.217,34.12]
[1773614607339,77.82198664,92.315,92.232,9.756]
[1773614608242,34.12,92.338,92.232,9.756]
[1773614608243,77.72742564,92.313,92.232,9.756]
[1773614609748,77.72742564,92.313,92.226,9.34316623]
[1773614609945,10.84074538,92.306,92.226,9.34316623]
[1773614610145,77.72742564,92.313,92.23,9.34316623]
[1773614610345,77.72742564,92.313,92.241,9.755]
[1773614610542,77.72742564,92.313,92.2,19.94919123]
[1773614610543,31.98227138,92.338,92.233,9.34316623]
[1773614610746,13.25635197,92.435,92.173,151.864]
[1773614610747,78.57760895,92.365,92.283,9.34316623]
[1773614610944,78.57760895,92.365,92.263,12.650226]
[1773614610945,78.57760895,92.365,92.284,34.12]
[1773614611243,78.57760895,92.365,92.285,34.12]
[1773614611449,78.57760895,92.365,92.299,9.34316623]
[1773614611650,78.57760895,92.365,92.298,9.34316623]
[1773614611847,78.57760895,92.365,92.258,18.97614651]
[1773614611848,78.56670763,92.363,92.273,9.50329369]
[1773614612148,52.0849709,92.361,92.234,34.12]
[1773614612344,52.0849709,92.359,92.235,34.12]
[1773614612549,52.0849709,92.336,92.256,9.753]
[1773614613051,52.00066499,92.332,92.256,9.753]
[1773614613850,52.00066499,92.332,92.267,9.752]
[1773614614148,52.01009445,92.33,92.223,12.650226]
[1773614614447,52.01009445,92.32,92.224,34.12]
[1773614614645,52.01009445,92.32,92.173,12.650226]
[1773614614646,51.71207386,92.28,92.173,12.650226]
[1773614614848,51.71207386,92.28,92.14,19.94919123]
[1773614614849,51.71207386,92.28,92.174,34.12]
[1773614615044,51.71207386,92.28,92.178,12.650226]
[1773614615245,51.71207386,92.28,92.192,12.650226]
[1773614615746,51.71207386,92.28,92.193,34.12]
[1773614615947,51.71207386,92.28,92.17,19.94919123]
[1773614615948,51.71207386,92.28,92.17,12.650226]
[1773614616148,51.18401654,92.253,92.165,34.12]
[1773614616747,10.05428785,92.352,92.165,34.12]
[1773614616748,51.23441982,92.294,92.214,9.758]
[1773614616952,51.23441982,92.294,92.199,34.12]
[1773614617251,9.751,92.278,92.199,34.12]
[1773614617453,51.23441982,92.277,92.199,34.12]
[1773614617853,51.02834262,92.269,92.2,9.759]
[1773614618556,51.02834262,92.269,92.199,34.12]
[1773614618756,50.96361153,92.317,92.199,34.12]
[1773614618955,50.96361153,92.286,92.199,34.12]
[1773614619255,50.96361153,92.284,92.188,34.12]
[1773614619463,33.90361153,92.232,92.135,12.650226]
[1773614619751,33.90361153,92.231,92.137,6.14058408]
[1773614620458,33.85371534,92.227,92.149,9.765]
[1773614620853,33.85371534,92.227,92.137,6.14058408]
[1773614621451,33.79563807,92.222,92.137,6.14058408]
[1773614621651,33.79563807,92.222,92.15,9.765]
[1773614622154,34.12,92.264,92.136,34.12]
[1773614622155,33.87517075,92.22,92.136,9.766]
[1773614622754,33.68428625,92.212,92.136,9.766]
[1773614623249,33.68428625,92.203,92.132,34.12]
[1773614624657,33.53593974,92.201,92.132,34.12]
[1773614625353,33.53593974,92.201,92.124,9.767]
[1773614625759,33.53593974,92.201,92.119,34.14]
[1773614625955,33.53593974,92.201,92.12,8.28943704]
[1773614626353,33.53593974,92.201,92.135,9.766]
[1773614626760,33.53593974,92.201,92.136,34.14]
[1773614627257,10.84074538,92.187,92.137,34.14]
[1773614627461,33.53593974,92.201,92.137,34.14]
[1773614627755,9.76,92.199,92.137,34.14]
[1773614627961,33.50453473,92.198,92.137,34.14]
[1773614628156,33.50453473,92.198,92.137,2.70895642]
[1773614628360,33.50453473,92.174,92.119,9.768]
[1773614628756,10.84074538,92.165,92.119,9.768]
[1773614628958,33.50453473,92.174,92.119,9.768]
[1773614629253,10.84074538,92.166,92.117,34.14]
[1773614629459,33.50453473,92.174,92.117,34.14]
[1773614630256,10.84074538,92.162,92.117,34.14]
[1773614630459,33.50453473,92.174,92.118,9.36512194]
[1773614630661,33.50453473,92.174,92.119,9.36512194]
[1773614630861,10.84074538,92.161,92.12,9.36512194]
[1773614631161,33.50453473,92.174,92.121,9.36512194]
[1773614631466,33.50453473,92.174,92.122,9.36512194]
[1773614631668,33.50453473,92.174,92.123,9.36512194]
[1773614631866,37.31646556,92.172,92.124,9.36512194]
[1773614632166,37.31646556,92.172,92.098,34.14]
[1773614632367,9.764,92.16,92.098,34.14]
[1773614632559,37.31646556,92.16,92.098,34.14]
[1773614633158,37.31646556,92.16,92.073,32.95861582]
[1773614633357,37.31646556,92.16,92.075,35.97700427]
[1773614633569,34.68155545,92.158,92.088,9.771]
[1773614633765,34.68155545,92.158,92.089,34.16]
[1773614634363,34.68155545,92.199,92.104,35.97700427]
[1773614635074,34.68155545,92.199,92.113,9.769]
[1773614635270,34.68155545,92.199,92.08,35.97700427]
[1773614635469,34.68155545,92.199,92.081,34.16]
[1773614635674,34.68155545,92.175,92.081,34.16]
[1773614635871,34.68155545,92.159,92.091,9.771]
[1773614636470,34.68155545,92.159,92.092,34.16]
[1773614637571,10.84074538,92.144,92.081,9.772]
[1773614637771,34.68155545,92.155,92.082,34.16]
[1773614638371,34.68155545,92.144,92.086,9.771]
[1773614638674,34.68155545,92.142,92.075,9.773]
[1773614638876,34.68155545,92.142,92.074,34.16]
[1773614640079,9.768,92.121,92.074,34.16]
[1773614640379,34.68155545,92.139,92.009,35.97700427]
[1773614640579,34.68155545,92.139,92.011,35.97700427]
[1773614640874,9.77,92.103,92.011,35.97700427]
[1773614641174,34.68155545,92.102,92.011,35.97700427]
[1773614641372,34.68155545,92.102,92.036,9.777]
[1773614641779,30.09376668,92.15,92.013,35.97700427]
[1773614641780,34.68155545,92.092,92.013,35.97700427]
[1773614642073,9.772,92.081,92.023,9.778]
[1773614642281,34.68155545,92.142,92.015,35.97700427]
[1773614642582,34.68155545,92.142,92.017,35.97700427]
[1773614642972,34.68155545,92.126,92.061,9.774]
[1773614643173,34.68155545,92.126,92.01,30.09376668]
[1773614643174,34.68155545,92.126,92.052,34.16]
[1773614643372,34.68155545,92.126,92.039,35.97700427]
[1773614643572,34.68155545,92.126,92.04,34.16]
[1773614643778,34.68155545,92.112,92.04,34.16]